[Event "Schack-SM 2024: Mastarklassen-elit"]
[Site "Fortnox Arena, Hejaregatan 5, Vaxjo, Sweden"]
[Date "2024.07.05"]
[Round "7.3"]
[White "Wiedenkeller, Michael"]
[Black "Akesson, Ralf"]
[Result "1-0"]
[TimeControl "90 minutes for 40 moves + 30 minutes for the rest of the game + 30 seconds per move from move one."]
[WhiteTitle "IM"]
[BlackTitle "GM"]
[WhiteElo "2417"]
[BlackElo "2360"]

1. d4 {[%clk 01:30:51]} {[%emt 00:00:07]} d5 {[%clk 01:28:51]} {[%emt
00:02:11]} 2. c4 {[%clk 01:30:40]} {[%emt 00:00:40]} e6 {[%clk 01:29:11]}
{[%emt 00:00:09]} 3. Nf3 {[%clk 01:30:45]} {[%emt 00:00:26]} Nf6 {[%clk
01:29:03]} {[%emt 00:00:38]} 4. Nc3 {[%clk 01:30:56]} {[%emt 00:00:21]} h6
{[%clk 01:28:50]} {[%emt 00:00:43]} 5. g3 {[%clk 01:26:05]} {[%emt 00:05:19]}
Nbd7 {[%clk 01:28:27]} {[%emt 00:00:53]} 6. Bg2 {[%clk 01:24:31]} {[%emt
00:02:04]} c6 {[%clk 01:28:26]} {[%emt 00:00:32]} 7. Qd3 {[%clk 01:23:02]}
{[%emt 00:02:00]} b6 {[%clk 01:22:25]} {[%emt 00:06:30]} 8. O-O {[%clk
01:16:48]} {[%emt 00:06:44]} Ba6 {[%clk 01:19:18]} {[%emt 00:03:37]} 9. b3
{[%clk 01:13:45]} {[%emt 00:03:33]} Be7 {[%clk 01:17:48]} {[%emt 00:01:58]} 10.
e4 {[%clk 01:09:05]} {[%emt 00:05:11]} O-O {[%clk 01:17:06]} {[%emt 00:01:12]}
11. e5 {[%clk 01:02:38]} {[%emt 00:06:59]} Nh7 {[%clk 01:15:32]} {[%emt
00:02:03]} 12. a4 {[%clk 01:01:07]} {[%emt 00:02:01]} Qc7 {[%clk 00:54:35]}
{[%emt 00:21:27]} 13. Re1 {[%clk 00:57:45]} {[%emt 00:03:52]} Rfd8 {[%clk
00:54:10]} {[%emt 00:00:54]} 14. Bf1 {[%clk 00:48:00]} {[%emt 00:10:16]} Rac8
{[%clk 00:48:54]} {[%emt 00:05:46]} 15. Ba3 {[%clk 00:31:57]} {[%emt 00:16:33]}
Bxa3 {[%clk 00:37:09]} {[%emt 00:12:14]} 16. Rxa3 {[%clk 00:32:18]} {[%emt
00:00:09]} Nb8 {[%clk 00:36:46]} {[%emt 00:00:53]} 17. Qe3 {[%clk 00:28:38]}
{[%emt 00:04:10]} Qe7 {[%clk 00:35:52]} {[%emt 00:01:23]} 18. Rea1 {[%clk
00:28:38]} {[%emt 00:00:32]} Ng5 {[%clk 00:24:01]} {[%emt 00:12:20]} 19. Nxg5
{[%clk 00:26:49]} {[%emt 00:02:21]} hxg5 {[%clk 00:24:22]} {[%emt 00:00:07]} 20.
a5 {[%clk 00:25:43]} {[%emt 00:01:38]} b5 {[%clk 00:22:49]} {[%emt 00:02:03]}
21. cxb5 {[%clk 00:23:35]} {[%emt 00:02:37]} cxb5 {[%clk 00:23:09]} {[%emt
00:00:10]} 22. Nxb5 {[%clk 00:23:13]} {[%emt 00:00:54]} Bxb5 {[%clk 00:20:59]}
{[%emt 00:02:40]} 23. Bxb5 {[%clk 00:23:41]} {[%emt 00:00:01]} Nc6 {[%clk
00:20:01]} {[%emt 00:01:28]} 24. Qd2 {[%clk 00:19:13]} {[%emt 00:04:57]} Qb4
{[%clk 00:14:15]} {[%emt 00:06:16]} 25. Qxb4 {[%clk 00:18:36]} {[%emt
00:01:07]} Nxb4 {[%clk 00:14:38]} {[%emt 00:00:07]} 26. Ra4 {[%clk 00:18:37]}
{[%emt 00:00:30]} Nc2 {[%clk 00:14:12]} {[%emt 00:00:55]} 27. Rc1 {[%clk
00:08:58]} {[%emt 00:10:06]} Rc3 {[%clk 00:14:05]} {[%emt 00:00:40]} 28. Ba6
{[%clk 00:08:59]} {[%emt 00:00:30]} Rc6 {[%clk 00:07:43]} {[%emt 00:06:51]} 29.
Bb7 {[%clk 00:05:21]} {[%emt 00:04:09]} Rc3 {[%clk 00:07:52]} {[%emt 00:00:21]}
30. Ra2 {[%clk 00:02:55]} {[%emt 00:02:56]} Rxb3 {[%clk 00:07:54]} {[%emt
00:00:27]} 31. Bxd5 {[%clk 00:02:02]} {[%emt 00:01:25]} Rxd5 {[%clk 00:07:51]}
{[%emt 00:00:31]} 32. Rcxc2 {[%clk 00:01:13]} {[%emt 00:01:19]} Rxd4 {[%clk
00:07:06]} {[%emt 00:01:16]} 33. Rc8+ {[%clk 00:01:42]} {[%emt 00:00:01]} Kh7
{[%clk 00:07:24]} {[%emt 00:00:11]} 34. Rc7 {[%clk 00:01:46]} {[%emt 00:00:27]}
Kg6 {[%clk 00:05:45]} {[%emt 00:02:07]} 35. Rxa7 {[%clk 00:02:00]} {[%emt
00:00:18]} g4 {[%clk 00:05:08]} {[%emt 00:01:06]} 36. Kg2 {[%clk 00:02:14]}
{[%emt 00:00:17]} Rb1 {[%clk 00:01:35]} {[%emt 00:04:03]} 37. h3 {[%clk
00:02:34]} {[%emt 00:00:10]} gxh3+ {[%clk 00:00:54]} {[%emt 00:01:10]} 38. Kxh3
{[%clk 00:03:02]} {[%emt 00:00:03]} Rdd1 {[%clk 00:00:36]} {[%emt 00:00:48]} 39.
Rc7 {[%clk 00:02:27]} {[%emt 00:01:05]} Rh1+ {[%clk 00:00:35]} {[%emt
00:00:30]} 40. Kg2 {[%clk 00:02:27]} {[%emt 00:00:28]} Rhg1+ {[%clk 00:00:33]}
{[%emt 00:00:34]} 41. Kf3 {[%clk 00:26:30]} {[%emt 00:06:27]} Rb3+ {[%clk
00:28:51]} {[%emt 00:02:12]} 42. Ke2 {[%clk 00:22:27]} {[%emt 00:04:33]} Rb5
{[%clk 00:27:39]} {[%emt 00:01:41]} 43. Rc3 {[%clk 00:19:34]} {[%emt 00:03:23]}
Rh1 {[%clk 00:24:29]} {[%emt 00:03:41]} 44. a6 {[%clk 00:18:22]} {[%emt
00:01:43]} Rh8 {[%clk 00:24:51]} {[%emt 00:00:06]} 45. Kf3 {[%clk 00:13:37]}
{[%emt 00:05:16]} Ra8 {[%clk 00:22:57]} {[%emt 00:02:24]} 46. Rc7 {[%clk
00:13:29]} {[%emt 00:00:39]} Rxe5 {[%clk 00:21:47]} {[%emt 00:01:40]} 47. Rb7
{[%clk 00:13:43]} {[%emt 00:00:17]} Rc5 {[%clk 00:21:11]} {[%emt 00:01:05]} 48.
a7 {[%clk 00:13:51]} {[%emt 00:00:22]} Rcc8 {[%clk 00:21:30]} {[%emt 00:00:10]}
49. Ra4 {[%clk 00:13:12]} {[%emt 00:01:09]} f5 {[%clk 00:20:06]} {[%emt
00:01:54]} 50. g4 {[%clk 00:10:33]} {[%emt 00:03:09]} fxg4+ {[%clk 00:16:07]}
{[%emt 00:04:29]} 51. Rxg4+ {[%clk 00:10:23]} {[%emt 00:00:40]} Kf5 {[%clk
00:16:22]} {[%emt 00:00:14]} 52. Rgxg7 {[%clk 00:09:56]} {[%emt 00:00:58]} Rc3+
{[%clk 00:16:31]} {[%emt 00:00:21]} 53. Kg2 {[%clk 00:09:46]} {[%emt 00:00:41]}
Ra3 {[%clk 00:16:54]} {[%emt 00:00:06]} 54. Rbf7+ {[%clk 00:08:38]} {[%emt
00:01:37]} Ke5 {[%clk 00:16:55]} {[%emt 00:00:29]} 55. Rd7 {[%clk 00:08:16]}
{[%emt 00:00:52]} Kf6 {[%clk 00:16:57]} {[%emt 00:00:28]} 56. Rgf7+ {[%clk
00:08:38]} {[%emt 00:00:08]} Kg6 {[%clk 00:16:10]} {[%emt 00:01:16]} 57. f3
{[%clk 00:08:47]} {[%emt 00:00:22]} Ra1 {[%clk 00:11:47]} {[%emt 00:04:54]} 58.
Kg3 {[%clk 00:07:41]} {[%emt 00:01:36]} Ra4 {[%clk 00:08:24]} {[%emt 00:03:52]}
59. Rb7 {[%clk 00:06:51]} {[%emt 00:01:20]} Rg8 {[%clk 00:08:22]} {[%emt
00:00:31]} 60. Kf2 {[%clk 00:06:54]} {[%emt 00:00:29]} Rc8 {[%clk 00:08:11]}
{[%emt 00:00:40]} 61. Rfc7 {[%clk 00:06:54]} {[%emt 00:00:31]} Rd8 {[%clk
00:07:05]} {[%emt 00:01:36]} 62. Rd7 {[%clk 00:07:12]} {[%emt 00:00:12]} Rc8
{[%clk 00:07:21]} {[%emt 00:00:14]} 63. Rbc7 {[%clk 00:07:32]} {[%emt
00:00:11]} Rf8 {[%clk 00:07:16]} {[%emt 00:00:33]} 64. Rg7+ {[%clk 00:07:26]}
{[%emt 00:00:37]} Kf6 {[%clk 00:07:38]} {[%emt 00:00:07]} 65. Ke3 {[%clk
00:06:32]} {[%emt 00:01:25]} Rd8 {[%clk 00:06:04]} {[%emt 00:02:02]} 66. Rgd7
{[%clk 00:06:29]} {[%emt 00:00:34]} Rh8 {[%clk 00:05:31]} {[%emt 00:01:01]} 67.
Rf7+ {[%clk 00:06:32]} {[%emt 00:00:28]} Kg6 {[%clk 00:05:31]} {[%emt
00:00:30]} 68. Rg7+ {[%clk 00:06:39]} {[%emt 00:00:23]} Kf6 {[%clk 00:05:54]}
{[%emt 00:00:06]} 69. Rgf7+ {[%clk 00:06:20]} {[%emt 00:00:50]} Kg6 {[%clk
00:06:21]} {[%emt 00:00:03]} 70. Rb7 {[%clk 00:05:37]} {[%emt 00:01:12]} Rc8
{[%clk 00:05:24]} {[%emt 00:01:26]} 71. Rg7+ {[%clk 00:05:11]} {[%emt
00:00:58]} Kf6 {[%clk 00:05:47]} {[%emt 00:00:06]} 72. Rbf7+ {[%clk 00:05:32]}
{[%emt 00:00:08]} Ke5 {[%clk 00:06:10]} {[%emt 00:00:07]} 73. f4+ {[%clk
00:05:43]} {[%emt 00:00:20]} Kd6 {[%clk 00:06:10]} {[%emt 00:00:30]} 74. Rd7+
{[%clk 00:05:59]} {[%emt 00:00:15]} Kc6 {[%clk 00:06:25]} {[%emt 00:00:14]} 75.
Rb7 {[%clk 00:05:22]} {[%emt 00:01:07]} Rh8 {[%clk 00:06:29]} {[%emt 00:00:27]}
76. Rh7 {[%clk 00:04:19]} {[%emt 00:01:33]} Rg8 {[%clk 00:06:49]} {[%emt
00:00:09]} 77. Kf3 {[%clk 00:03:33]} {[%emt 00:01:16]} Rd8 {[%clk 00:05:56]}
{[%emt 00:01:24]} 78. Rhc7+ {[%clk 00:03:07]} {[%emt 00:00:56]} Kd6 {[%clk
00:06:23]} {[%emt 00:00:03]} 79. Rg7 {[%clk 00:03:20]} {[%emt 00:00:17]} Kc6
{[%clk 00:04:48]} {[%emt 00:02:04]} 80. Rbe7 {[%clk 00:03:30]} {[%emt
00:00:19]} Kd6 {[%clk 00:05:00]} {[%emt 00:00:19]} 81. Ref7 {[%clk 00:03:00]}
{[%emt 00:01:00]} Kc6 {[%clk 00:03:58]} {[%emt 00:01:32]} 82. Rg6 {[%clk
00:02:37]} {[%emt 00:00:54]} Kd5 {[%clk 00:03:27]} {[%emt 00:01:01]} 83. Rb7
{[%clk 00:02:19]} {[%emt 00:00:49]} Ra3+ {[%clk 00:00:34]} {[%emt 00:03:22]} 84.
Kg4 {[%clk 00:02:33]} {[%emt 00:00:16]} Rd6 {[%clk 00:00:33]} {[%emt 00:00:32]}
85. Rg8 {[%clk 00:01:50]} {[%emt 00:01:13]} Rda6 {[%clk 00:00:56]} {[%emt
00:00:07]} 86. Rd8+ {[%clk 00:01:39]} {[%emt 00:00:40]} Kc5 {[%clk 00:00:35]}
{[%emt 00:00:49]} 87. Rc7+ {[%clk 00:01:24]} {[%emt 00:00:48]} Kb6 {[%clk
00:00:38]} {[%emt 00:00:27]} 88. Re7 {[%clk 00:01:29]} {[%emt 00:00:24]} Rxa7
{[%clk 00:00:58]} {[%emt 00:00:09]} 89. Rd6+ {[%clk 00:01:19]} {[%emt
00:00:42]} Kc5 {[%clk 00:01:18]} {[%emt 00:00:09]} 90. Rxa7 {[%clk 00:01:20]}
{[%emt 00:00:30]} Rxa7 {[%clk 00:01:45]} {[%emt 00:00:02]} 91. Rxe6 {[%clk
00:01:43]} {[%emt 00:00:07]} Kd5 {[%clk 00:01:38]} {[%emt 00:00:37]} 92. f5
{[%emt 00:01:30]} Rg7+ {[%clk 00:01:09]} 93. Rg6 {[%clk 00:01:06]} {[%emt
00:01:06]} Re7 {[%clk 00:00:47]} {[%emt 00:00:51]} 94. Kg5 {[%clk 00:01:20]}
{[%emt 00:00:18]} 1-0

[Event "Schack-SM 2024: Mastarklassen-elit"]
[Site "Fortnox Arena, Hejaregatan 5, Vaxjo, Sweden"]
[Date "2024.07.05"]
[Round "7.4"]
[White "Sorensen, Hampus"]
[Black "Crevatin, Leo"]
[Result "1/2-1/2"]
[TimeControl "90 minutes for 40 moves + 30 minutes for the rest of the game + 30 seconds per move from move one."]
[WhiteTitle "IM"]
[BlackTitle "FM"]
[WhiteElo "2404"]
[BlackElo "2235"]

1. Nf3 {[%clk 01:30:35]} {[%emt 00:00:25]} d5 {[%clk 01:28:14]} {[%emt
00:02:45]} 2. g3 {[%clk 01:30:51]} {[%emt 00:00:12]} Bg4 {[%clk 01:28:21]}
{[%emt 00:00:24]} 3. Bg2 {[%clk 01:31:09]} {[%emt 00:00:13]} Nd7 {[%clk
01:28:37]} {[%emt 00:00:15]} 4. h3 {[%clk 01:31:16]} {[%emt 00:00:23]} Bxf3
{[%clk 01:28:39]} {[%emt 00:00:28]} 5. Bxf3 {[%clk 01:31:40]} {[%emt 00:00:06]}
c6 {[%clk 01:28:45]} {[%emt 00:00:22]} 6. d4 {[%clk 01:23:10]} {[%emt
00:09:00]} e5 {[%clk 01:23:23]} {[%emt 00:05:52]} 7. dxe5 {[%clk 01:22:22]}
{[%emt 00:01:19]} Nxe5 {[%clk 01:23:34]} {[%emt 00:00:19]} 8. Bg2 {[%clk
01:22:49]} {[%emt 00:00:03]} Nf6 {[%clk 01:20:05]} {[%emt 00:03:58]} 9. O-O
{[%clk 01:22:55]} {[%emt 00:00:25]} Bc5 {[%clk 01:15:44]} {[%emt 00:04:51]} 10.
Nd2 {[%clk 01:18:43]} {[%emt 00:04:41]} O-O {[%clk 01:12:09]} {[%emt 00:04:05]}
11. c3 {[%clk 01:13:29]} {[%emt 00:05:44]} Bb6 {[%clk 01:08:04]} {[%emt
00:04:35]} 12. Qc2 {[%clk 01:11:19]} {[%emt 00:02:40]} Re8 {[%clk 01:04:25]}
{[%emt 00:04:09]} 13. c4 {[%clk 01:03:45]} {[%emt 00:08:04]} dxc4 {[%clk
01:00:21]} {[%emt 00:04:34]} 14. Nxc4 {[%clk 01:03:55]} {[%emt 00:00:20]} Nxc4
{[%clk 00:59:57]} {[%emt 00:00:54]} 15. Qxc4 {[%clk 01:04:22]} {[%emt
00:00:03]} Qd4 {[%clk 00:58:17]} {[%emt 00:02:09]} 16. Qc2 {[%clk 00:51:08]}
{[%emt 00:13:45]} Qe5 {[%clk 00:50:20]} {[%emt 00:08:26]} 17. e3 {[%clk
00:49:59]} {[%emt 00:01:39]} Rad8 {[%clk 00:48:09]} {[%emt 00:02:39]} 18. Rb1
{[%clk 00:47:20]} {[%emt 00:03:12]} Ne4 {[%clk 00:44:19]} {[%emt 00:04:19]} 19.
b4 {[%clk 00:44:03]} {[%emt 00:03:49]} Qe6 {[%clk 00:39:47]} {[%emt 00:05:00]}
20. Rb3 {[%clk 00:38:40]} {[%emt 00:05:53]} h5 {[%clk 00:31:31]} {[%emt
00:08:45]} 21. Rd1 {[%clk 00:33:45]} {[%emt 00:05:26]} a6 {[%clk 00:25:42]}
{[%emt 00:06:19]} 22. Rxd8 {[%clk 00:25:26]} {[%emt 00:08:50]} Bxd8 {[%clk
00:26:00]} {[%emt 00:00:12]} 23. Bb2 {[%clk 00:25:30]} {[%emt 00:00:25]} Bf6
{[%clk 00:17:44]} {[%emt 00:08:47]} 24. Bxf6 {[%clk 00:23:53]} {[%emt
00:02:07]} Nxf6 {[%clk 00:17:55]} {[%emt 00:00:18]} 25. Rd3 {[%clk 00:23:49]}
{[%emt 00:00:33]} Re7 {[%clk 00:14:25]} {[%emt 00:04:01]} 26. a4 {[%clk
00:12:07]} {[%emt 00:12:12]} Rd7 {[%clk 00:13:54]} {[%emt 00:01:00]} 27. b5
{[%clk 00:11:27]} {[%emt 00:01:11]} axb5 {[%clk 00:10:39]} {[%emt 00:03:43]} 28.
axb5 {[%emt 00:01:39]} Rxd3 {[%clk 00:08:47]} {[%emt 00:01:12]} 29. Qxd3 {[%clk
00:11:57]} {[%emt 00:00:01]} cxb5 {[%clk 00:07:53]} {[%emt 00:01:24]} 30. Qxb5
{[%clk 00:12:02]} {[%emt 00:00:26]} b6 {[%clk 00:08:13]} {[%emt 00:00:09]} 31.
Kh2 {[%clk 00:06:13]} {[%emt 00:06:20]} Qd6 {[%clk 00:06:45]} {[%emt 00:01:57]}
32. Qc4 {[%clk 00:02:14]} {[%emt 00:04:29]} Qc5 {[%clk 00:06:15]} {[%emt
00:01:01]} 33. Qf4 {[%clk 00:02:19]} {[%emt 00:00:25]} b5 {[%clk 00:04:44]}
{[%emt 00:02:01]} 34. Bf1 {[%clk 00:02:43]} {[%emt 00:00:05]} b4 {[%clk
00:04:12]} {[%emt 00:01:02]} 35. Bc4 {[%clk 00:02:51]} {[%emt 00:00:22]} Qb6
{[%clk 00:02:57]} {[%emt 00:01:45]} 36. Bb3 {[%clk 00:02:52]} {[%emt 00:00:30]}
Qb7 {[%clk 00:02:37]} {[%emt 00:00:49]} 37. Qf5 {[%clk 00:01:53]} {[%emt
00:01:28]} Kf8 {[%clk 00:01:33]} {[%emt 00:01:33]} 38. Kg1 {[%clk 00:01:27]}
{[%emt 00:00:59]} Kg8 {[%clk 00:01:11]} {[%emt 00:00:52]} 39. Kh2 {[%clk
00:01:44]} {[%emt 00:00:12]} Kf8 {[%clk 00:01:35]} {[%emt 00:00:06]} 40. Kg1
{[%clk 00:01:29]} {[%emt 00:00:46]} Kg8 {[%clk 00:01:26]} {[%emt 00:00:38]} 41.
Qc5 {[%clk 00:25:14]} {[%emt 00:06:44]} g6 {[%clk 00:24:37]} {[%emt 00:07:19]}
42. Qc4 {[%clk 00:23:56]} {[%emt 00:01:48]} Kg7 {[%clk 00:23:31]} {[%emt
00:01:36]} 43. Bc2 {[%clk 00:14:40]} {[%emt 00:09:47]} Qd7 {[%clk 00:18:44]}
{[%emt 00:05:16]} 44. Bb3 {[%clk 00:14:00]} {[%emt 00:01:12]} Qb7 {[%clk
00:18:37]} {[%emt 00:00:36]} 45. g4 {[%clk 00:09:19]} {[%emt 00:05:10]} hxg4
{[%clk 00:17:42]} {[%emt 00:01:25]} 46. hxg4 {[%clk 00:09:48]} {[%emt
00:00:03]} Qe7 {[%clk 00:15:10]} {[%emt 00:03:02]} 47. Kf1 {[%clk 00:07:44]}
{[%emt 00:02:32]} Ne4 {[%clk 00:11:34]} {[%emt 00:04:06]} 48. Kg2 {[%clk
00:07:36]} {[%emt 00:00:38]} Kh7 {[%clk 00:10:08]} {[%emt 00:01:57]} 49. Qd4
{[%clk 00:06:42]} {[%emt 00:01:23]} Ng5 {[%clk 00:09:54]} {[%emt 00:00:44]} 50.
Bd5 {[%clk 00:05:54]} {[%emt 00:01:20]} Ne6 {[%clk 00:09:17]} {[%emt 00:01:07]}
51. Qc4 {[%clk 00:05:07]} {[%emt 00:01:18]} Kg7 {[%clk 00:09:10]} {[%emt
00:00:35]} 52. Qe4 {[%clk 00:04:00]} {[%emt 00:01:38]} Qd6 {[%clk 00:08:46]}
{[%emt 00:00:53]} 53. f4 {[%clk 00:03:27]} {[%emt 00:01:03]} Nc7 {[%clk
00:08:04]} {[%emt 00:01:12]} 54. Bb3 {[%clk 00:02:38]} {[%emt 00:01:19]} Qd2+
{[%clk 00:07:46]} {[%emt 00:00:47]} 55. Kf3 {[%clk 00:02:51]} {[%emt 00:00:16]}
Qc3 {[%clk 00:07:18]} {[%emt 00:01:00]} 56. Qd4+ {[%clk 00:02:35]} {[%emt
00:00:45]} Qxd4 {[%clk 00:05:31]} {[%emt 00:02:17]} 57. exd4 {[%clk 00:03:04]}
{[%emt 00:00:02]} Ne6 {[%clk 00:04:49]} {[%emt 00:01:11]} 58. Ke4 {[%clk
00:02:53]} {[%emt 00:00:42]} Kf6 {[%clk 00:04:44]} {[%emt 00:00:35]} 59. g5+
{[%clk 00:01:07]} {[%emt 00:02:17]} Ke7 {[%clk 00:04:38]} {[%emt 00:00:35]} 60.
Ke5 {[%clk 00:01:35]} {[%emt 00:00:01]} Nc7 {[%clk 00:04:03]} {[%emt 00:01:05]}
61. Bc4 {[%clk 00:01:23]} {[%emt 00:00:42]} Ne8 {[%clk 00:03:03]} {[%emt
00:01:30]} 62. Kd5 {[%clk 00:01:42]} {[%emt 00:00:12]} Nc7+ {[%clk 00:01:54]}
{[%emt 00:01:38]} 63. Kc5 {[%clk 00:01:50]} {[%emt 00:00:22]} Ne6+ {[%clk
00:00:58]} {[%emt 00:01:26]} 64. Bxe6 {[%clk 00:02:15]} {[%emt 00:00:04]} fxe6
{[%clk 00:01:24]} {[%emt 00:00:05]} 65. Kxb4 {[%clk 00:02:42]} {[%emt
00:00:03]} Kd6 {[%clk 00:01:45]} {[%emt 00:00:09]} 66. Kc4 {[%clk 00:02:40]}
{[%emt 00:00:31]} Kc6 {[%clk 00:02:12]} {[%emt 00:00:04]} 67. Kd3 {[%clk
00:01:51]} {[%emt 00:01:18]} Kd5 {[%clk 00:02:20]} {[%emt 00:00:23]} 68. Ke3
{[%clk 00:02:20]} {[%emt 00:00:01]} Kc6 {[%clk 00:02:14]} {[%emt 00:00:36]} 69.
Kd2 {[%clk 00:01:52]} {[%emt 00:00:58]} Kd6 {[%clk 00:01:25]} {[%emt 00:01:19]}
70. Kc2 {[%clk 00:01:59]} {[%emt 00:00:23]} Kc6 {[%clk 00:01:20]} {[%emt
00:00:35]} 71. Kc3 {[%clk 00:01:38]} {[%emt 00:00:50]} Kd6 {[%clk 00:00:54]}
{[%emt 00:00:56]} 72. Kd2 {[%clk 00:01:44]} {[%emt 00:00:25]} Kc6 {[%clk
00:00:54]} {[%emt 00:00:29]} 73. Ke3 {[%clk 00:02:09]} {[%emt 00:00:06]} Kd5
{[%clk 00:01:12]} {[%emt 00:00:12]} 74. Kd3 {[%clk 00:02:36]} {[%emt 00:00:03]}
Kc6 {[%clk 00:01:27]} {[%emt 00:00:15]} 75. Ke3 {[%clk 00:02:25]} {[%emt
00:00:41]} Kd5 {[%clk 00:01:52]} {[%emt 00:00:05]} 1/2-1/2

[Event "Schack-SM 2024: Mastarklassen-elit"]
[Site "Fortnox Arena, Hejaregatan 5, Vaxjo, Sweden"]
[Date "2024.07.05"]
[Round "7.5"]
[White "Cederstam, Carl"]
[Black "Carlsson, Ludvig"]
[Result "1-0"]
[TimeControl "90 minutes for 40 moves + 30 minutes for the rest of the game + 30 seconds per move from move one."]
[WhiteTitle "FM"]
[BlackTitle "IM"]
[WhiteElo "2278"]
[BlackElo "2335"]

1. d4 {[%clk 01:30:56]} {[%emt 00:00:04]} Nf6 {[%clk 01:30:51]} {[%emt
00:00:10]} 2. c4 {[%clk 01:31:16]} {[%emt 00:00:05]} g6 {[%clk 01:31:12]}
{[%emt 00:00:13]} 3. f3 {[%clk 01:31:37]} {[%emt 00:00:10]} e6 {[%clk
01:31:14]} {[%emt 00:00:28]} 4. e4 {[%clk 01:31:58]} {[%emt 00:00:08]} c5
{[%clk 01:31:38]} {[%emt 00:00:08]} 5. d5 {[%clk 01:32:23]} {[%emt 00:00:03]}
d6 {[%clk 01:32:01]} {[%emt 00:00:09]} 6. Nc3 {[%clk 01:32:04]} {[%emt
00:00:49]} Bg7 {[%clk 01:32:24]} {[%emt 00:00:05]} 7. Nge2 {[%clk 01:32:04]}
{[%emt 00:00:31]} exd5 {[%clk 01:31:30]} {[%emt 00:01:25]} 8. cxd5 {[%clk
01:32:25]} {[%emt 00:00:08]} a6 {[%clk 01:29:21]} {[%emt 00:02:38]} 9. a4
{[%clk 01:32:19]} {[%emt 00:00:38]} Nbd7 {[%clk 01:29:45]} {[%emt 00:00:06]} 10.
Ng3 {[%clk 01:32:37]} {[%emt 00:00:12]} h5 {[%clk 01:30:10]} {[%emt 00:00:06]}
11. Be2 {[%clk 01:32:17]} {[%emt 00:00:50]} Nh7 {[%clk 01:30:33]} {[%emt
00:00:06]} 12. Nf1 {[%clk 01:29:02]} {[%emt 00:03:46]} Qh4+ {[%clk 01:20:21]}
{[%emt 00:10:42]} 13. g3 {[%clk 01:28:04]} {[%emt 00:01:28]} Qe7 {[%clk
01:20:47]} {[%emt 00:00:05]} 14. Be3 {[%clk 01:12:51]} {[%emt 00:15:41]} Ne5
{[%clk 01:16:30]} {[%emt 00:04:47]} 15. h3 {[%clk 01:01:37]} {[%emt 00:11:45]}
O-O {[%clk 01:16:31]} {[%emt 00:00:29]} 16. Nd2 {[%clk 00:50:59]} {[%emt
00:11:06]} f5 {[%clk 01:14:53]} {[%emt 00:02:10]} 17. f4 {[%clk 00:49:18]}
{[%emt 00:02:11]} fxe4 {[%clk 01:15:14]} {[%emt 00:00:09]} 18. fxe5 {[%clk
00:42:39]} {[%emt 00:07:10]} Bxe5 {[%clk 01:15:31]} {[%emt 00:00:12]} 19. Qb3
{[%clk 00:41:20]} {[%emt 00:01:49]} Bxg3+ {[%clk 01:13:30]} {[%emt 00:02:32]}
20. Kd1 {[%clk 00:38:55]} {[%emt 00:02:55]} Bf5 {[%clk 01:12:12]} {[%emt
00:01:48]} 21. Rg1 {[%clk 00:36:58]} {[%emt 00:02:28]} h4 {[%clk 01:12:33]}
{[%emt 00:00:09]} 22. Nf1 {[%clk 00:36:09]} {[%emt 00:01:18]} Be5 {[%clk
01:12:16]} {[%emt 00:00:47]} 23. Bxc5 {[%clk 00:31:56]} {[%emt 00:04:43]} Kh8
{[%clk 01:09:00]} {[%emt 00:03:46]} 24. Be3 {[%clk 00:28:49]} {[%emt 00:03:36]}
Bxh3 {[%clk 01:08:41]} {[%emt 00:00:48]} 25. Nd2 {[%clk 00:27:59]} {[%emt
00:01:21]} Bf5 {[%clk 01:08:40]} {[%emt 00:00:31]} 26. Nc4 {[%clk 00:27:19]}
{[%emt 00:01:11]} Bg3 {[%clk 01:03:52]} {[%emt 00:05:16]} 27. Bd4+ {[%clk
00:24:47]} {[%emt 00:03:03]} Kg8 {[%clk 00:59:50]} {[%emt 00:04:32]} 28. Ne3
{[%clk 00:24:53]} {[%emt 00:00:25]} Ng5 {[%clk 00:59:51]} {[%emt 00:00:28]} 29.
Nf1 {[%clk 00:17:12]} {[%emt 00:08:10]} Bf4 {[%clk 00:48:37]} {[%emt 00:11:45]}
30. Bg4 {[%clk 00:17:36]} {[%emt 00:00:07]} h3 {[%clk 00:44:07]} {[%emt
00:05:00]} 31. Bxf5 {[%clk 00:16:37]} {[%emt 00:01:29]} gxf5 {[%clk 00:44:00]}
{[%emt 00:00:37]} 32. Ne2 {[%clk 00:16:15]} {[%emt 00:00:52]} h2 {[%clk
00:44:04]} {[%emt 00:00:26]} 33. Qh3 {[%clk 00:15:32]} {[%emt 00:01:13]} Qg7
{[%clk 00:41:12]} {[%emt 00:03:23]} 34. Nxh2 {[%clk 00:13:40]} {[%emt
00:02:22]} Be5 {[%clk 00:38:08]} {[%emt 00:03:33]} 35. Bxe5 {[%clk 00:13:56]}
{[%emt 00:00:15]} dxe5 {[%clk 00:38:37]} {[%emt 00:00:02]} 36. Qh5 {[%clk
00:14:16]} {[%emt 00:00:10]} Qh7 {[%clk 00:38:28]} {[%emt 00:00:39]} 37. Rxg5+
{[%clk 00:14:31]} {[%emt 00:00:14]} Kh8 {[%clk 00:38:57]} {[%emt 00:00:02]} 38.
Qxh7+ {[%clk 00:13:11]} {[%emt 00:01:49]} Kxh7 {[%clk 00:39:26]} {[%emt
00:00:01]} 39. Ng4 {[%clk 00:13:20]} {[%emt 00:00:21]} fxg4 {[%clk 00:39:45]}
{[%emt 00:00:11]} 40. Kd2 {[%clk 00:13:41]} {[%emt 00:00:07]} Rf3 {[%clk
00:40:01]} {[%emt 00:00:15]} 41. Rh1+ {[%clk 00:13:23]} {[%emt 00:00:49]} Rh3
{[%clk 00:40:29]} {[%emt 00:00:02]} 42. Rxh3+ {[%clk 00:13:21]} {[%emt
00:00:33]} gxh3 {[%clk 00:40:57]} {[%emt 00:00:01]} 43. Rh5+ {[%clk 00:13:45]}
{[%emt 00:00:06]} Kg6 {[%clk 00:41:22]} {[%emt 00:00:06]} 44. Rxh3 {[%clk
00:14:10]} {[%emt 00:00:04]} b5 {[%clk 00:41:37]} {[%emt 00:00:15]} 45. axb5
{[%clk 00:14:00]} {[%emt 00:00:41]} axb5 {[%clk 00:42:06]} {[%emt 00:00:01]} 46.
Ra3 {[%clk 00:14:21]} {[%emt 00:00:10]} Rd8 {[%clk 00:42:30]} {[%emt 00:00:04]}
47. Ra6+ {[%clk 00:14:14]} {[%emt 00:00:36]} Kf5 {[%clk 00:42:58]} {[%emt
00:00:02]} 48. d6 {[%clk 00:14:28]} {[%emt 00:00:16]} Ke6 {[%clk 00:42:22]}
{[%emt 00:01:06]} 49. Ke3 {[%clk 00:14:49]} {[%emt 00:00:08]} Kd5 {[%clk
00:42:23]} {[%emt 00:00:29]} 50. Nc3+ {[%clk 00:14:44]} {[%emt 00:00:35]} Kc4
{[%clk 00:42:51]} {[%emt 00:00:02]} 51. Rc6+ {[%clk 00:14:50]} {[%emt
00:00:24]} Kb3 {[%clk 00:43:14]} {[%emt 00:00:07]} 52. Nxb5 {[%clk 00:15:13]}
{[%emt 00:00:08]} 1-0